bitfinex/quotes_ETHUSD_20240828
["timestamp","ask_amount","ask_price","bid_price","bid_amount"]
[1724851451663,3.95804,2526.5,2526.1,2.3305]
[1724851451957,3.95804,2526.5,2525.9,3.95897]
[1724851452162,3.95747,2526.9,2526.0,2.3758]
[1724851452471,3.0,2527.0,2526.4,3.95809]
[1724851452627,7.91434,2527.1,2526.5,2.3558]
[1724851452966,3.9571,2527.1,2526.5,2.3558]
[1724851453266,3.95682,2527.3,2526.6,4.03688441]
[1724851453434,3.0,2527.2,2526.7,0.63926844]
[1724851453759,3.13065801,2527.1,2526.5,2.3558]
[1724851453980,3.0,2527.2,2526.6,3.95788]
[1724851454288,3.0,2527.2,2526.6,4.6684399]
[1724851454659,3.95654,2527.5,2526.9,3.9574]
[1724851454992,3.95643,2527.6,2527.0,3.95725]
[1724851455784,7.91254,2527.7,2527.1,2.3939]
[1724851456098,4.36872648,2528.2,2527.2,4.591945]
[1724851456099,3.95593,2527.9,2527.2,4.591945]
[1724851456390,3.95559,2528.1,2527.3,2.47303027]
[1724851456745,3.95559,2528.1,2527.3,2.3939]
[1724851456948,7.91125,2528.1,2527.3,6.42967366]
[1724851457169,3.95588,2527.9,2527.3,10.38634366]
[1724851457361,3.95588,2527.9,2527.4,1.06336476]
[1724851457745,7.91125,2528.1,2527.5,3.95644]
[1724851458041,7.91125,2528.1,2527.6,1.76415644]
[1724851458042,3.95559,2528.1,2527.6,1.76415644]
[1724851458383,3.95588,2527.9,2527.6,1.76415644]
[1724851458684,3.95642,2527.6,2527.4,19.83]
[1724851458847,0.9343,2528.2,2527.4,19.83]
[1724851458848,3.95647,2527.5,2527.4,19.83]
[1724851459890,7.91294,2527.5,2527.4,19.83]
[1724851460248,3.95691,2527.3,2526.9,2.354]
[1724851460485,3.95695,2527.2,2526.9,2.354]
[1724851460850,3.95721,2527.1,2526.9,2.354]
[1724851461050,3.95726,2527.0,2526.9,2.354]
[1724851462459,3.95758,2526.8,2526.5,2.4623]
[1724851462676,3.95726,2527.0,2526.5,2.4623]
[1724851463077,3.95758,2526.8,2526.5,2.4623]
[1724851463393,7.91527,2526.8,2526.5,2.4623]
[1724851463568,3.95758,2526.8,2526.5,2.4623]
[1724851463889,3.9578,2526.7,2526.5,2.4623]
[1724851464301,3.95758,2526.8,2526.5,2.4623]
[1724851464590,7.91527,2526.8,2526.6,3.44369292]
[1724851464789,3.95758,2526.8,2526.7,1.37747717]
[1724851465004,3.95711,2527.1,2526.7,1.37747717]
[1724851465154,3.9573,2527.0,2526.8,3.44348949]
[1724851465358,3.9573,2527.0,2526.9,9.64151528]
[1724851465681,3.95705,2527.2,2526.9,9.64151528]
[1724851465999,7.91415,2527.2,2527.1,2.48793515]
[1724851466167,10.91415,2527.2,2527.1,12.12945043]
[1724851466691,3.95682,2527.3,2527.1,14.57255043]
[1724851466996,3.95672,2527.4,2527.2,12.12945043]
[1724851467157,3.95672,2527.4,2527.3,9.64151528]
[1724851467357,6.95672,2527.4,2527.3,12.12972733]
[1724851467574,10.91344,2527.4,2527.3,12.12972733]
[1724851467870,10.91344,2527.4,2527.3,9.64151528]
[1724851469558,12.004784,2527.4,2527.3,9.64151528]
[1724851469798,12.004784,2527.4,2527.3,8.27256293]
[1724851469975,10.91344,2527.4,2527.3,6.19817928]
[1724851470177,10.91344,2527.4,2527.3,8.27247372]
[1724851470390,10.91344,2527.4,2527.3,7.85762739]
[1724851470569,14.87007,2527.4,2527.3,7.44296257]
[1724851470784,15.961414,2527.4,2527.3,7.44296767]
[1724851470990,16.511414,2527.4,2527.3,7.44296767]
[1724851471184,16.511414,2527.4,2527.3,3.44343293]
[1724851471185,16.511324,2527.4,2527.3,3.44343293]
[1724851471598,11.87037,2527.3,2527.2,0.82990451]
[1724851471796,17.5606344,2527.3,2527.2,4.27369013]
[1724851472200,13.0538444,2527.3,2527.2,4.27369013]
[1724851472365,13.0538444,2527.3,2527.2,3.44378562]
[1724851472565,13.0538444,2527.3,2527.2,4.27369013]
[1724851472788,10.91358,2527.3,2527.2,4.27369013]
[1724851473389,10.91358,2527.3,2527.2,1.37751425]
[1724851473595,10.91358,2527.3,2527.2,3.44366579]
[1724851473596,3.95679,2527.3,2527.2,3.44366579]
[1724851473767,3.95679,2527.3,2527.2,4.2735703]
[1724851474104,7.91358,2527.3,2527.2,4.27348698]
[1724851474405,3.9571,2527.1,2527.0,3.09372119]
[1724851474610,3.9571,2527.1,2527.0,6.53698642]
[1724851475304,3.95705,2527.2,2527.0,3.64120609]
[1724851475479,3.95705,2527.2,2527.0,2.2639]
[1724851475674,7.91409,2527.2,2527.0,2.2639]
[1724851476062,3.95704,2527.2,2527.1,0.14514546]
[1724851477722,7.91411,2527.2,2527.1,0.14514546]
[1724851478534,11.87118,2527.2,2527.1,0.14514546]
[1724851478813,3.95754,2526.9,2526.7,22.2216]
[1724851479118,3.95757,2526.8,2526.7,22.2216]
[1724851480584,3.95742,2526.9,2526.7,22.2216]
[1724851480974,3.95742,2526.9,2526.7,25.18076]
[1724851481181,3.95731,2527.0,2526.7,5.35076]
[1724851481390,3.0,2527.2,2526.7,3.95769]
[1724851481593,3.9568,2527.3,2526.8,2.3916]
[1724851482092,7.91369,2527.3,2526.8,2.3916]
[1724851482394,3.95697,2527.2,2526.9,1.030694]
[1724851483088,3.95713,2527.1,2526.8,2.3916]
[1724851483933,3.95741,2526.9,2526.8,2.3916]
[1724851484094,7.91474,2527.0,2526.8,2.3916]
[1724851484291,7.9147,2527.0,2526.8,2.3916]
[1724851484713,3.95734,2527.0,2526.8,2.3916]
[1724851484897,3.95741,2526.9,2526.8,2.3916]
[1724851485222,7.91482,2526.9,2526.8,2.3916]
[1724851485794,3.95795,2526.6,2526.3,2.3164]
[1724851486413,3.95769,2526.8,2526.3,2.3164]
[1724851486720,3.0,2527.2,2526.2,4.03765337]
[1724851486721,3.95703,2527.2,2526.8,2.402]
[1724851487016,3.95703,2527.2,2526.9,0.635965]
[1724851487219,3.95703,2527.2,2526.8,2.402]
[1724851487649,3.95702,2527.2,2526.8,2.402]
[1724851488342,7.91408,2527.2,2526.8,2.402]
[1724851488487,3.95702,2527.2,2526.8,2.402]
[1724851489402,3.95702,2527.2,2527.0,2.307]
[1724851490141,7.9141,2527.2,2527.0,2.307]
[1724851490310,3.9571,2527.1,2527.0,2.307]
[1724851490993,7.91407,2527.2,2527.0,2.307]
[1724851491219,3.9571,2527.1,2527.0,2.45226449]
[1724851491590,3.95702,2527.2,2527.0,2.45226449]
[1724851491791,3.95702,2527.2,2527.0,4.68049094]
[1724851492329,3.95702,2527.2,2527.0,2.45226449]
[1724851493226,7.91405,2527.2,2527.0,2.45226449]
[1724851493433,3.95702,2527.2,2527.0,2.45226449]
[1724851494422,7.91408,2527.2,2527.0,2.45226449]
[1724851494589,3.95702,2527.2,2527.0,2.45226449]
[1724851495808,7.91409,2527.2,2527.0,2.45226449]
[1724851496118,3.9571,2527.1,2527.0,2.45226449]
[1724851496627,3.95696,2527.2,2527.0,2.45226449]
[1724851498346,7.91351,2527.4,2527.0,4.68049094]
[1724851498645,3.95673,2527.4,2527.1,2.3731]
[1724851499007,3.95679,2527.3,2527.2,0.14512965]
[1724851499204,7.91358,2527.3,2527.2,0.14512965]
[1724851500440,15.961728,2527.3,2527.2,0.14512965]
[1724851500820,3.95753,2526.9,2526.6,2.3675]
[1724851501022,3.95759,2526.8,2526.6,2.3675]
[1724851501437,7.91546,2526.7,2526.6,2.3675]
[1724851502606,3.95773,2526.7,2526.4,2.2621]
[1724851503451,3.95789,2526.6,2526.4,2.2621]
[1724851505565,3.95788,2526.6,2526.4,2.2621]
[1724851505768,3.95804,2526.5,2526.4,2.2621]
[1724851506131,8.707672,2526.5,2526.4,0.14561755]
[1724851506534,3.95845,2526.3,2526.1,2.4504]
[1724851506844,7.91702,2526.2,2526.1,2.4504]
[1724851508279,7.91702,2526.2,2526.0,0.82982119]
[1724851508280,11.87601,2526.1,2526.0,0.82982119]
[1724851508636,15.83468,2526.1,2526.0,0.82982119]
[1724851508860,18.83468,2526.1,2526.0,1.19e-06]
[1724851509140,19.38468,2526.1,2526.0,1.19e-06]
[1724851509359,21.416578,2526.1,2526.0,1.19e-06]
[1724851509835,11.87694,2525.9,2525.8,1.24478839]
[1724851510031,10.91796,2525.9,2525.8,1.24478839]
[1724851510790,3.95898,2525.9,2525.8,1.24478839]
[1724851511192,3.95882,2526.0,2525.8,1.24478839]
[1724851511395,3.95861,2526.2,2525.8,1.77080204]
[1724851511708,3.95883,2526.0,2525.8,1.77080204]
[1724851511904,3.95861,2526.2,2525.8,1.24478839]
[1724851512215,7.91728,2526.2,2525.8,1.24478839]
[1724851512417,3.95898,2525.9,2525.8,1.24478839]
[1724851515620,7.91796,2525.9,2525.8,1.24478839]
[1724851516736,10.91796,2525.9,2525.8,1.24478839]
[1724851517235,14.87694,2525.9,2525.8,1.24478839]
[1724851519906,18.83592,2525.9,2525.8,1.24478839]
[1724851520267,22.049699,2525.9,2525.8,8.39e-06]
[1724851520405,15.83656,2525.8,2525.7,1.65944811]
[1724851520742,19.38656,2525.8,2525.7,1.65944811]
[1724851521119,3.96039,2525.0,2524.9,2.4373]
[1724851521435,3.96039,2525.0,2524.9,2.58549631]
[1724851522202,3.9603,2525.1,2524.9,2.58549631]
[1724851522438,3.96025,2525.1,2524.9,2.58549631]
[1724851523153,3.95994,2525.3,2524.9,2.58549631]
[1724851523705,3.96031,2525.1,2524.9,2.58549631]
[1724851524313,3.96039,2525.0,2524.9,2.58549631]
[1724851524546,3.96031,2525.1,2524.9,2.58549631]
[1724851524744,3.96039,2525.0,2524.9,2.58549631]
[1724851525668,7.92078,2525.0,2524.9,2.58549631]
[1724851526269,8.712858,2525.0,2524.9,0.14819631]
[1724851526482,11.712858,2525.0,2524.9,0.14819631]
[1724851526766,15.673248,2525.0,2524.9,0.14819631]
[1724851527142,15.673248,2525.0,2524.3,2.3369]
[1724851527143,11.88165,2524.9,2524.3,2.3369]
[1724851527473,16.4489748,2524.9,2524.3,2.3369]
[1724851529030,12.4884248,2524.9,2524.3,2.3369]
[1724851531555,12.4884248,2524.9,2524.7,2.4737]
[1724851531757,3.0,2524.9,2524.7,2.4737]
[1724851531957,3.96031,2525.1,2524.9,2.4259]
[1724851532272,3.0,2525.0,2524.9,2.4259]
[1724851532631,10.92078,2525.0,2524.9,2.4259]
[1724851532840,10.92078,2525.0,2524.8,5.49e-06]
[1724851532841,3.96055,2524.9,2524.8,5.49e-06]
[1724851533285,7.9211,2524.9,2524.8,5.49e-06]
[1724851534659,10.9211,2524.9,2524.8,5.49e-06]
[1724851534901,14.88165,2524.9,2524.8,5.49e-06]
[1724851535045,19.3922,2524.9,2524.8,5.49e-06]
[1724851535247,22.04995622,2524.9,2524.8,5.49e-06]
[1724851535465,22.60732277,2524.9,2524.8,5.49e-06]
[1724851535966,13.01057784,2524.9,2524.8,5.49e-06]
[1724851536203,3.0,2524.9,2524.8,5.49e-06]
[1724851536505,3.96034,2525.1,2524.9,2.4434]
[1724851536707,3.96039,2525.0,2524.9,2.4434]
[1724851537276,3.96027,2525.1,2524.9,2.4434]
[1724851537483,7.9206,2525.1,2524.9,2.4434]
[1724851537683,6.96039,2525.0,2524.9,2.4434]
[1724851537906,3.0,2525.0,2524.9,2.4434]
[1724851538067,3.96027,2525.1,2524.9,2.4434]
[1724851538811,3.96003,2525.3,2524.9,2.4434]
[1724851539113,3.96017,2525.2,2524.9,2.4434]
[1724851539405,3.95972,2525.5,2524.9,7.04427555]
[1724851539634,3.9594,2525.7,2525.1,6.35214]
[1724851539910,3.95961,2525.5,2525.2,3.027214]
[1724851540111,3.95961,2525.5,2525.2,2.392]
[1724851541336,7.91932,2525.5,2525.2,2.392]
[1724851541505,7.91931,2525.5,2525.2,2.392]
[1724851541710,3.95961,2525.5,2525.2,2.392]
[1724851541941,3.95953,2525.6,2525.2,2.392]
[1724851542120,3.95992,2525.3,2525.2,2.392]
[1724851543136,3.95992,2525.3,2525.0,2.3817]
[1724851543327,3.0,2525.5,2525.0,2.3817]
[1724851543525,3.95984,2525.4,2525.0,2.3817]
[1724851543915,3.95956,2525.6,2525.0,2.3817]
[1724851544174,3.95956,2525.6,2524.9,3.96045]
[1724851544175,3.0,2525.5,2525.2,2.4063]
[1724851544754,3.95921,2525.8,2525.2,2.4063]
[1724851544910,0.41316442,2526.1,2525.4,2.3609]
[1724851545110,3.95924,2525.8,2525.4,2.3609]
[1724851545313,3.95945,2525.6,2525.4,2.3609]
[1724851545545,3.95924,2525.8,2525.4,2.3609]
[1724851546158,3.95948,2525.6,2525.4,2.3609]
[1724851546328,7.91903,2525.6,2525.4,2.3609]
[1724851546523,3.95923,2525.8,2525.4,2.3609]
[1724851547440,3.95945,2525.6,2525.4,2.3609]
[1724851548002,7.91922,2525.5,2525.4,2.3609]
[1724851549458,3.95961,2525.5,2525.4,2.3609]
[1724851550132,7.91922,2525.5,2525.4,2.3609]
[1724851550324,9.107073,2525.5,2525.4,2.3609]
[1724851550916,9.107073,2525.5,2525.4,2.50457497]
[1724851551121,16.066683,2525.5,2525.4,0.14367497]
[1724851551339,3.96019,2525.2,2525.0,2.2796]
[1724851551549,3.96019,2525.2,2525.1,0.14380001]
[1724851551815,7.92038,2525.2,2525.1,0.14380001]
[1724851552435,14.88057,2525.2,2525.1,0.14380001]
[1724851552858,10.92038,2525.2,2525.1,0.14380001]
[1724851553067,3.96055,2524.9,2524.8,5.49e-06]
[1724851553361,3.96055,2524.9,2524.8,2.44273057]
[1724851553518,3.9604,2525.0,2524.8,2.44273057]
[1724851553713,3.96035,2525.1,2524.8,2.44273057]
[1724851554027,6.9602,2525.2,2524.8,2.44273057]
[1724851554229,3.9602,2525.2,2524.8,2.68700363]
[1724851554431,3.96025,2525.1,2524.8,2.68700363]
[1724851554632,7.92059,2525.1,2524.8,2.44273057]
[1724851554822,3.9604,2525.0,2524.8,2.44273057]
[1724851555141,3.96055,2524.9,2524.8,2.44273057]
[1724851556664,8.713195,2524.9,2524.8,2.44273057]
[1724851556960,7.9211,2524.9,2524.8,2.44273057]
[1724851557488,7.9211,2524.9,2524.8,0.14393057]
[1724851557702,14.88165,2524.9,2524.8,0.14393057]
[1724851558005,14.88165,2524.9,2524.8,5.49e-06]
[1724851558174,16.369815,2524.9,2524.8,5.49e-06]
[1724851558703,16.369815,2524.9,2524.8,0.14461834]
[1724851558864,12.409265,2524.9,2524.8,5.49e-06]
[1724851559804,16.369815,2524.9,2524.8,5.49e-06]
[1724851560127,12.409265,2524.9,2524.8,5.49e-06]
[1724851560619,3.96055,2524.9,2524.8,5.49e-06]
[1724851561140,7.9211,2524.9,2524.8,0.14473015]
[1724851561420,7.9211,2524.9,2524.8,5.49e-06]
[1724851562000,7.9211,2524.9,2524.8,0.14552111]
[1724851562813,3.96055,2524.9,2524.8,0.14552111]
[1724851563258,3.96044,2525.0,2524.8,0.14552111]
[1724851563409,6.96018,2525.2,2524.9,2.262]
[1724851563721,3.96025,2525.1,2524.9,2.262]
[1724851563927,6.96018,2525.2,2525.0,0.14543224]
[1724851564504,3.0,2525.2,2525.0,0.14543224]
[1724851564713,3.95986,2525.4,2525.1,2.4098]
[1724851564714,3.96,2525.3,2525.1,2.4098]
[1724851564890,7.91977,2525.4,2525.2,0.14534887]
[1724851565086,3.95986,2525.4,2525.2,0.14534887]
[1724851566499,3.95992,2525.3,2525.2,0.14534887]
[1724851566709,8.711818,2525.3,2525.2,0.14534887]
[1724851566941,3.9597,2525.5,2525.2,0.14534887]
[1724851567142,3.95871,2526.1,2525.5,2.3168]
[1724851567424,0.9343,2526.6,2525.5,2.3168]
[1724851567425,7.91858,2525.7,2525.6,0.14458888]
[1724851567648,8.710438,2525.7,2525.6,0.14458888]
[1724851567820,3.95945,2525.6,2525.5,2.3168]
[1724851568848,3.95921,2525.8,2525.5,2.3168]
[1724851569247,3.95895,2526.0,2525.5,2.3168]
[1724851569471,7.9189,2525.6,2525.5,2.3168]
[1724851569754,10.9189,2525.6,2525.5,2.3168]
[1724851569955,6.95945,2525.6,2525.5,2.3168]
[1724851570318,3.95922,2525.8,2525.5,2.3168]
[1724851570963,10.91779,2526.0,2525.5,2.3168]
[1724851571250,3.0,2525.9,2525.5,2.3168]
[1724851571456,3.0,2525.9,2525.6,2.3972]
[1724851571632,3.95884,2526.0,2525.6,2.3972]
[1724851572030,3.95901,2525.9,2525.6,2.3972]
[1724851572235,3.95929,2525.7,2525.6,2.3972]
[1724851572556,3.95916,2525.8,2525.6,2.3972]
[1724851573042,3.95929,2525.7,2525.6,2.3972]
[1724851573438,3.95928,2525.8,2524.9,2.4777]
[1724851573624,3.96001,2525.3,2524.9,2.4777]
[1724851575142,3.95961,2525.5,2525.0,3.96038]
[1724851575333,6.95938,2525.7,2525.3,2.4604]
[1724851575969,3.95954,2525.6,2525.3,2.4604]
[1724851576262,3.95976,2525.4,2525.3,2.4604]
[1724851576464,5.051622,2525.5,2524.9,2.4604]
[1724851576465,3.96029,2525.1,2524.9,2.4604]
[1724851577131,7.92003,2525.3,2524.9,2.4604]
[1724851577330,3.96001,2525.3,2524.9,2.4604]
[1724851577923,3.96039,2525.0,2524.9,2.4604]
[1724851578352,7.92078,2525.0,2524.9,2.4604]
[1724851578553,7.9211,2524.9,2524.8,5.49e-06]
[1724851579331,10.9211,2524.9,2524.8,5.49e-06]
[1724851579532,12.31321,2524.9,2524.8,5.49e-06]
[1724851580034,8.35266,2524.9,2524.8,0.14410255]
[1724851580233,12.31321,2524.9,2524.8,5.49e-06]
[1724851580468,12.31321,2524.9,2524.8,0.14410255]
[1724851580639,12.31321,2524.9,2524.8,5.49e-06]
[1724851581041,16.27376,2524.9,2524.8,5.49e-06]
[1724851581482,16.82376,2524.9,2524.8,5.49e-06]
[1724851582544,12.26321,2524.9,2524.8,5.49e-06]
[1724851582744,10.8711,2524.9,2524.8,5.49e-06]
[1724851583462,10.8711,2524.9,2524.8,0.14023365]
[1724851583860,10.8711,2524.9,2524.8,5.49e-06]
[1724851584263,14.83165,2524.9,2524.8,5.49e-06]
[1724851584760,10.8711,2524.9,2524.8,5.49e-06]
[1724851584955,12.354253,2524.9,2524.8,5.49e-06]
[1724851585160,16.314803,2524.9,2524.8,5.49e-06]
[1724851587447,12.354253,2524.9,2524.8,5.49e-06]
[1724851587752,12.354253,2524.9,2524.8,2.25730549]
[1724851587753,10.8711,2524.9,2524.8,2.25730549]
[1724851589984,10.8711,2524.9,2524.8,2.39273926]
[1724851591383,3.9604,2525.0,2524.8,2.39273926]
[1724851591584,3.96034,2525.1,2524.8,2.39273926]
[1724851591585,3.96034,2525.1,2525.0,2.3984]
[1724851591746,3.96034,2525.1,2525.0,2.53371614]
[1724851592686,3.96008,2525.2,2525.0,2.53371614]
[1724851592987,10.92046,2525.1,2525.0,2.53371614]
[1724851593965,10.92046,2525.1,2525.0,0.13531614]
[1724851594288,3.96055,2524.9,2524.8,5.49e-06]
[1724851594590,3.96055,2524.9,2524.8,0.13540502]
[1724851594961,7.9211,2524.9,2524.8,0.13540502]
[1724851595387,6.96033,2525.1,2524.9,2.2689]
[1724851595689,3.96009,2525.2,2525.1,2.2689]
[1724851595985,3.96009,2525.2,2525.1,2.40404604]
[1724851596548,3.96002,2525.3,2525.1,2.40404604]
[1724851596945,3.9598,2525.4,2525.1,2.66849369]
[1724851597188,3.95957,2525.6,2525.1,2.66849369]
[1724851597361,3.95957,2525.6,2525.3,2.4614]
[1724851597565,3.95957,2525.6,2525.4,0.13493539]
[1724851597882,3.95957,2525.6,2525.5,2.4834]
[1724851598386,3.95957,2525.6,2525.5,2.61817388]
[1724851598599,7.9187,2525.7,2525.5,2.61817388]
[1724851598766,3.95945,2525.6,2525.5,2.61817388]
[1724851599772,3.95932,2525.7,2525.5,2.61817388]
[1724851601400,3.95914,2525.8,2525.5,2.61817388]
[1724851601690,3.95877,2526.1,2525.6,2.4388]
[1724851601855,3.95923,2525.8,2525.6,2.4388]
[1724851602050,7.91858,2525.7,2525.6,2.4388]
[1724851602391,3.95929,2525.7,2525.6,2.4388]
[1724851604082,3.95895,2526.0,2525.6,2.4388]
[1724851604254,3.95921,2525.8,2525.6,2.4388]
[1724851604669,3.95929,2525.7,2525.6,2.4388]
[1724851604877,3.95929,2525.7,2525.6,2.68268]
[1724851605475,3.95929,2525.7,2525.6,2.4388]
[1724851606773,3.95976,2525.4,2525.3,2.4388]
[1724851610107,7.91952,2525.4,2525.3,2.4388]
[1724851610313,7.91952,2525.4,2524.9,2.402]
[1724851610314,3.96049,2525.0,2524.9,2.402]
[1724851610978,3.96049,2525.0,2524.9,2.53628787]
[1724851611203,3.96049,2525.0,2524.9,2.78991721]
[1724851612049,3.96049,2525.0,2524.9,2.53628787]
[1724851613835,7.92057,2525.1,2524.9,2.53628787]
[1724851614046,3.96039,2525.0,2524.9,2.53628787]
[1724851616039,11.88117,2525.0,2524.9,0.13428787]
[1724851616222,15.277209,2525.0,2524.9,0.13428787]
[1724851616563,7.9211,2524.9,2524.8,5.49e-06]
[1724851616713,10.9211,2524.9,2524.8,5.49e-06]
[1724851616898,12.7488529,2524.9,2524.8,5.49e-06]
[1724851617101,16.7094029,2524.9,2524.8,5.49e-06]
[1724851619552,10.9211,2524.9,2524.8,5.49e-06]
[1724851620420,3.96039,2525.0,2524.8,2.33060549]
[1724851620751,7.92092,2525.0,2524.9,0.13433065]
[1724851621363,3.96055,2524.9,2524.8,2.33060549]
[1724851621518,7.9211,2524.9,2524.8,2.33060549]
[1724851621718,7.9211,2524.9,2524.8,2.46497784]
[1724851621919,3.96055,2524.9,2524.8,2.46497784]
[1724851624018,3.96055,2524.9,2524.8,2.71147562]
[1724851624226,3.96055,2524.9,2524.8,2.46497784]
[1724851626748,7.9211,2524.9,2524.8,2.46497784]
[1724851626948,3.96055,2524.9,2524.8,2.46497784]
[1724851627154,7.9211,2524.9,2524.8,2.46497784]
[1724851629170,10.9211,2524.9,2524.8,0.13437784]
[1724851630051,6.96055,2524.9,2524.8,0.13437784]
[1724851630551,6.96055,2524.9,2524.8,2.56057784]
[1724851631126,10.9211,2524.9,2524.8,2.56057784]
[1724851631331,6.96055,2524.9,2524.8,2.56057784]
[1724851633829,3.96052,2525.0,2524.8,2.56057784]
[1724851634037,6.96012,2525.2,2524.8,2.81663562]
[1724851634576,3.96039,2525.0,2524.8,2.81663562]
[1724851636485,10.92035,2525.2,2524.8,2.81663562]
[1724851636776,6.96012,2525.2,2524.8,2.81663562]
[1724851637069,6.96012,2525.2,2525.0,2.2875]
[1724851637581,3.96023,2525.1,2525.0,2.2875]
[1724851637761,6.96023,2525.1,2525.0,2.2875]
[1724851638571,10.92046,2525.1,2525.0,2.2875]
[1724851638735,7.9211,2524.9,2524.8,5.49e-06]
[1724851639861,6.96034,2525.1,2524.8,5.49e-06]
[1724851640041,3.96039,2525.0,2524.9,2.3155]
[1724851641055,3.96039,2525.0,2524.9,2.45014733]
[1724851641257,6.96025,2525.1,2524.9,2.45014733]
[1724851641460,6.96025,2525.1,2524.9,2.69516261]
[1724851642089,3.96025,2525.1,2524.9,2.69516261]
[1724851643085,7.92057,2525.1,2524.9,2.69516261]
[1724851643291,7.92057,2525.1,2524.9,2.45014733]
[1724851643493,3.96039,2525.0,2524.9,2.45014733]
[1724851644365,7.92078,2525.0,2524.9,2.45014733]
[1724851644550,7.92078,2525.0,2524.9,0.13464733]
[1724851646704,13.069273,2525.0,2524.9,0.13464733]
[1724851646907,16.069273,2525.0,2524.9,0.13464733]
[1724851647350,11.88165,2524.9,2524.8,5.49e-06]
[1724851647551,14.88165,2524.9,2524.8,0.13448052]
[1724851647866,16.8846643,2524.9,2524.8,0.13448052]
[1724851648061,14.88165,2524.9,2524.8,0.13448052]
[1724851648385,10.9211,2524.9,2524.8,0.13448052]
[1724851649768,6.96055,2524.9,2524.8,2.60308052]
[1724851650075,3.96055,2524.9,2524.8,2.60308052]
[1724851650252,3.96047,2525.0,2524.8,2.86338857]
[1724851651357,7.92095,2525.0,2524.8,2.86338857]
[1724851651680,3.96047,2525.0,2524.8,2.86338857]
[1724851652003,4.37280314,2525.5,2525.0,3.96038]
[1724851652004,0.41314314,2525.5,2525.0,3.96038]
[1724851652201,7.91916,2525.6,2525.1,2.3846387]
[1724851652202,7.91913,2525.6,2525.1,2.3846387]
[1724851652407,3.95954,2525.6,2525.3,2.2504]
[1724851652895,3.95954,2525.6,2525.4,0.13411366]
[1724851653091,3.95954,2525.6,2525.5,2.3081]
[1724851653391,3.95932,2525.7,2525.5,2.44215487]
[1724851654055,3.95945,2525.6,2525.5,2.44215487]
[1724851656299,3.95932,2525.7,2525.5,2.44215487]
[1724851656655,3.95932,2525.7,2525.5,2.68637036]
[1724851656857,6.95908,2525.9,2525.5,2.68637036]
[1724851657071,7.9182,2525.9,2525.5,2.68637036]
[1724851657297,3.95924,2525.8,2525.5,2.68637036]
[1724851657570,3.95932,2525.7,2525.5,2.68637036]
[1724851657907,3.95932,2525.7,2525.5,2.44215487]
[1724851658112,3.95945,2525.6,2525.5,2.44215487]
[1724851658469,3.95932,2525.7,2525.5,2.44215487]
[1724851658775,7.9187,2525.7,2525.5,2.44215487]
[1724851658995,3.95932,2525.7,2525.5,2.44215487]
[1724851659306,7.9189,2525.6,2525.5,2.44215487]
[1724851659486,7.9189,2525.6,2525.5,0.13405487]
[1724851660303,4.355262,2525.7,2525.6,2.3966]
[1724851660304,3.95931,2525.7,2525.6,2.3966]
[1724851660491,3.95931,2525.7,2525.6,4.63266549]
[1724851660753,3.95931,2525.7,2525.6,4.76611396]
[1724851661003,3.95931,2525.7,2525.6,2.53004847]
[1724851661768,3.95915,2525.8,2525.6,2.53004847]
[1724851662480,3.95929,2525.7,2525.6,2.53004847]
[1724851666136,7.91858,2525.7,2525.6,2.53004847]
[1724851666420,7.91858,2525.7,2525.6,0.13344847]
[1724851666723,7.91858,2525.7,2525.3,22.1937]
[1724851666724,7.91952,2525.4,2525.3,22.1937]
[1724851668027,3.95976,2525.4,2525.3,22.1937]
[1724851668927,3.95976,2525.4,2525.3,2.3637]
[1724851671021,7.91934,2525.5,2525.3,2.3637]
[1724851671225,7.91934,2525.5,2525.3,2.49714517]
[1724851672089,3.95976,2525.4,2525.3,2.49714517]
[1724851673722,3.95961,2525.5,2525.3,2.49714517]
[1724851674202,7.91932,2525.5,2525.3,2.49714517]
[1724851674790,3.95961,2525.5,2525.3,2.49714517]
[1724851675029,3.95976,2525.4,2525.3,2.49714517]
[1724851676399,3.95894839,2525.4,2525.3,2.49714517]
[1724851678730,7.91902,2525.6,2525.3,2.49714517]
[1724851679023,3.95947,2525.6,2525.3,2.49714517]
[1724851679325,3.0,2525.7,2525.3,4.73900169]
[1724851679550,3.95926,2525.8,2525.4,2.4743]
[1724851679754,3.95864,2526.2,2525.6,6.43366]
[1724851680053,3.959,2525.9,2525.6,2.4743]
[1724851680253,3.959,2525.9,2525.7,0.13331271]
[1724851680413,0.41312046,2526.4,2525.8,6.24814]
[1724851680414,3.95851,2526.2,2525.8,6.24814]
[1724851680619,0.41312046,2526.4,2526.0,3.95881]
[1724851680957,7.91631,2526.5,2526.1,2.61779474]
[1724851681127,3.95813,2526.5,2526.1,2.61779474]
[1724851681654,7.91628,2526.5,2526.1,2.61779474]
[1724851681829,3.95813,2526.5,2526.1,2.61779474]
[1724851682961,7.91629,2526.5,2526.1,2.61779474]
[1724851683251,7.91627,2526.5,2526.1,2.61779474]
[1724851683413,3.95813,2526.5,2526.1,2.61779474]
[1724851683965,3.95789,2526.6,2526.1,7.23410721]
[1724851684260,6.95783,2526.7,2526.3,2.3631]
[1724851684562,3.0,2526.6,2526.4,0.76509714]
[1724851684856,3.95743,2526.9,2526.4,0.76509714]
[1724851685015,3.95743,2526.9,2526.5,2.4622]
[1724851685221,3.95743,2526.9,2526.5,2.78492971]
[1724851685460,3.95743,2526.9,2526.6,0.13286086]
[1724851685751,3.95729,2527.0,2526.6,0.13286086]
[1724851686161,3.0,2526.9,2526.7,2.4622]
[1724851686457,3.0,2526.9,2526.7,2.59501923]
[1724851686812,7.91411,2527.2,2526.7,2.59501923]
[1724851687078,3.0,2527.1,2526.7,2.59501923]
[1724851687244,3.0,2527.1,2526.8,2.4516]
[1724851687574,3.95704,2527.2,2526.9,0.1319065]
[1724851687950,3.95721,2527.1,2526.9,0.1319065]
[1724851688473,7.91452,2527.0,2526.9,0.1319065]
[1724851688935,3.95726,2527.0,2526.9,0.1319065]